fUST/lending_fUST_20240715
["ID","MTS","AMOUNT","RATE_DAILY","PERIOD"]
[332230118,1721055051182,-500.0,0.00026849,2]
[332230119,1721055051192,-500.0,0.00026849,2]
[332230120,1721055051202,-500.0,0.00026849,2]
[332230121,1721055051212,-896.13,0.00026849,2]
[332230122,1721055051221,-1251.5,0.00026849,2]
[332230123,1721055051231,-554.96,0.00026849,2]
[332230124,1721055051241,-9123.68,0.00026849,2]
[332230125,1721055051250,-1255.3,0.00026849,2]
[332230126,1721055051260,-500.0,0.00026849,2]
[332230127,1721055051270,-735.6,0.00026849,2]
[332230128,1721055051280,-509.66,0.00026849,2]
[332230129,1721055051291,-731.63,0.00026849,2]
[332230130,1721055051301,-644.81,0.00026849,2]
[332230131,1721055051311,-587.02,0.00026849,2]
[332230132,1721055051320,-729.89684613,0.0002685,2]
[332230133,1721055051330,-773.54697738,0.00026866,2]
[332230134,1721055051340,-150.49308352,0.00026871,2]
[332230135,1721055051350,-4918.23712229,0.00026922,2]
[332230136,1721055051360,-729.89684613,0.00026958,2]
[332230137,1721055051369,-500.0,0.00026961,2]
[332230138,1721055051379,-2233.49057512,0.00026961,2]
[332230139,1721055051388,-729.89684613,0.00027019,2]
[332230140,1721055051398,-152.2410677,0.0002703,2]
[332230141,1721055051407,-158.08796187,0.00027032,2]
[332230142,1721055051416,-2233.49057512,0.00027039,2]
[332230143,1721055051426,-2233.49057512,0.00027049,2]
[332230144,1721055051435,-150.49308352,0.00027062,2]
[332230145,1721055051445,-729.89684613,0.00027075,2]
[332230146,1721055051454,-2233.49057512,0.00027083,2]
[332230147,1721055051464,-500.0,0.00027123,2]
[332230148,1721055051473,-500.0,0.00027123,2]
[332230149,1721055051483,-567.04,0.00027123,2]
[332230150,1721055051493,-500.0,0.00027123,2]
[332230151,1721055051502,-500.0,0.00027123,2]
[332230152,1721055051511,-500.0,0.00027123,2]
[332230153,1721055051520,-500.0,0.00027123,2]
[332230154,1721055051531,-500.0,0.00027123,2]
[332230155,1721055051540,-156.09,0.00027123,2]
[332230156,1721055051550,-500.0,0.00027123,2]
[332230157,1721055051560,-500.0,0.00027123,2]
[332230158,1721055051569,-733.59,0.00027123,2]
[332230159,1721055051578,-938.11,0.00027123,2]
[332230160,1721055051588,-783.68,0.00027123,2]
[332230161,1721055051597,-500.0,0.00027123,2]
[332230162,1721055051606,-500.0,0.00027123,2]
[332230163,1721055051615,-8031.84,0.00027123,2]
[332230164,1721055051624,-500.0,0.00027123,2]
[332230165,1721055051633,-665.36,0.00027123,2]
[332230166,1721055051642,-823.83,0.00027123,2]
[332230167,1721055051652,-500.0,0.00027123,2]
[332230168,1721055051661,-500.0,0.00027123,2]
[332230169,1721055051670,-500.0,0.00027123,2]
[332230170,1721055051680,-896.13,0.00027123,2]
[332230171,1721055051689,-1251.5,0.00027123,2]
[332230172,1721055051699,-554.96,0.00027123,2]
[332230173,1721055051708,-1255.3,0.00027123,2]
[332230174,1721055051716,-9123.68,0.00027123,2]
[332230175,1721055051726,-500.0,0.00027123,2]
[332230176,1721055051736,-735.6,0.00027123,2]
[332230177,1721055051745,-731.63,0.00027123,2]
[332230178,1721055051754,-644.81,0.00027123,2]
[332230179,1721055051763,-587.02,0.00027123,2]
[332230180,1721055051772,-169.456007,0.00027123,2]
[332230181,1721055051782,-153.92251333,0.00027125,2]
[332230182,1721055051792,-151.78440315,0.00027131,2]
[332230183,1721055051801,-4918.23712229,0.00027137,2]
[332230184,1721055051811,-1970.0,0.00027147,2]
[332230185,1721055051820,-151.0,0.00027147,2]
[332230186,1721055051829,-151.0,0.00027147,7]
[332230187,1721055051839,-282.72308,0.00027147,7]
[332230188,1721055051848,-282.72308,0.00027147,7]
[332230189,1721055051857,-289.622261,0.00027195,2]
[332230190,1721055051866,-329.84504603,0.00027198,2]
[332230191,1721055051876,-329.84504603,0.00027214,2]
[332230192,1721055051885,-2233.49057512,0.00027217,2]
[332230193,1721055051895,-160.0,0.00027229,3]
[332230194,1721055051903,-152.2410677,0.00027312,2]
[332230195,1721055051915,-150.71364408,0.00027338,2]
[332230196,1721055051925,-250.01584989,0.00027338,2]
[332230197,1721055051934,-151.0,0.00027392,7]
[332230198,1721055051943,-500.0,0.00027397,2]
[332230199,1721055051952,-500.0,0.00027397,2]
[332230200,1721055051962,-500.0,0.00027397,2]
[332230201,1721055051972,-500.0,0.00027397,2]
[332230202,1721055051981,-500.0,0.00027397,2]
[332230203,1721055051992,-500.0,0.00027397,2]
[332230204,1721055052001,-500.0,0.00027397,2]
[332230205,1721055052010,-500.0,0.00027397,2]
[332230206,1721055052019,-500.0,0.00027397,2]
[332230207,1721055052028,-500.0,0.00027397,2]
[332230208,1721055052038,-500.0,0.00027397,2]
[332230209,1721055052047,-500.0,0.00027397,2]
[332230210,1721055052056,-500.0,0.00027397,2]
[332230211,1721055052065,-500.0,0.00027397,2]
[332230212,1721055052074,-500.0,0.00027397,2]
[332230213,1721055052083,-500.0,0.00027397,2]
[332230214,1721055052092,-500.0,0.00027397,2]
[332230215,1721055052102,-500.0,0.00027397,2]
[332230216,1721055052111,-500.0,0.00027397,2]
[332230217,1721055052120,-500.0,0.00027397,2]
[332230218,1721055052129,-500.0,0.00027397,2]
[332230219,1721055052138,-500.0,0.00027397,2]
[332230220,1721055052148,-500.0,0.00027397,2]
[332230221,1721055052157,-500.0,0.00027397,2]
[332230222,1721055052166,-500.0,0.00027397,2]
[332230223,1721055052175,-500.0,0.00027397,2]
[332230224,1721055052185,-348.52286129,0.00027397,2]
[332230225,1721055052195,-500.0,0.00027397,2]
[332230226,1721055052204,-500.0,0.00027397,2]
[332230227,1721055052213,-500.0,0.00027397,2]
[332230228,1721055052223,-500.0,0.00027397,2]
[332230229,1721055052232,-330.0,0.00027397,2]
[332230230,1721055052241,-500.0,0.00027397,2]
[332230231,1721055052251,-500.0,0.00027397,2]
[332230232,1721055052260,-500.0,0.00027397,2]
[332230233,1721055052270,-500.0,0.00027397,2]
[332230234,1721055052279,-500.0,0.00027397,2]
[332230235,1721055052289,-500.0,0.00027397,2]
[332230236,1721055052298,-500.0,0.00027397,2]
[332230237,1721055052307,-567.04,0.00027397,2]
[332230238,1721055052316,-500.0,0.00027397,2]
[332230239,1721055052325,-500.0,0.00027397,2]
[332230240,1721055052335,-500.0,0.00027397,2]
[332230241,1721055052344,-500.0,0.00027397,2]
[332230242,1721055052353,-500.0,0.00027397,2]
[332230243,1721055052362,-151.0,0.00027397,7]
[332230244,1721055052371,-500.0,0.00027397,2]
[332230245,1721055052381,-500.0,0.00027397,2]
[332230246,1721055052391,-500.0,0.00027397,2]
[332230247,1721055052400,-500.0,0.00027397,2]
[332230248,1721055052409,-500.0,0.00027397,2]
[332230249,1721055052418,-500.0,0.00027397,2]
[332230250,1721055052427,-500.0,0.00027397,2]
[332230251,1721055052436,-500.0,0.00027397,2]
[332230252,1721055052445,-500.0,0.00027397,2]
[332230253,1721055052454,-500.0,0.00027397,2]
[332230254,1721055052464,-500.0,0.00027397,2]
[332230255,1721055052473,-246.084278,0.00027397,7]
[332230256,1721055052483,-246.084278,0.00027397,7]
[332230257,1721055052492,-597.948573,0.00027397,7]
[332230258,1721055052501,-597.948573,0.00027397,7]
[332230259,1721055052510,-500.0,0.00027397,12]
[332230260,1721055052519,-500.0,0.00027397,12]
[332230261,1721055052528,-500.0,0.00027397,12]
[332230262,1721055052538,-517.77690257,0.00027397,12]
[332230263,1721055052548,-500.0,0.00027397,2]
[332230264,1721055052557,-151.0,0.00027397,2]
[332230265,1721055052566,-500.0,0.00027397,2]
[332230266,1721055052574,-733.59,0.00027397,2]
[332230267,1721055052583,-938.11,0.00027397,2]
[332230268,1721055052594,-783.68,0.00027397,2]
[332230269,1721055052603,-500.0,0.00027397,2]
[332230270,1721055052613,-500.0,0.00027397,2]
[332230271,1721055052622,-8031.84,0.00027397,2]
[332230272,1721055052631,-260.14225701,0.00027397,2]
[332230273,1721055052640,-665.36,0.00027397,2]
[332230274,1721055052649,-823.83,0.00027397,2]
[332230275,1721055052659,-255.484874,0.00027397,7]
[332230276,1721055052668,-500.0,0.00027397,2]
[332230277,1721055052678,-500.0,0.00027397,2]
[332230278,1721055052687,-500.0,0.00027397,2]
[332230279,1721055052697,-896.13,0.00027397,2]
[332230280,1721055052706,-1251.5,0.00027397,2]
[332230281,1721055052715,-446.283755,0.00027397,7]
[332230282,1721055052724,-446.283755,0.00027397,7]
[332230283,1721055052734,-554.96,0.00027397,2]
[332230284,1721055052743,-1255.3,0.00027397,2]
[332230285,1721055052752,-8991.86564622,0.00027397,2]
[332230286,1721055052766,-131.81435378,0.00027397,2]
[332230287,1721055052775,-500.0,0.00027397,2]
[332230288,1721055052869,-735.6,0.00027397,2]
[332230289,1721055052879,-731.63,0.00027397,2]
[332230290,1721055052888,-644.81,0.00027397,2]
[332230291,1721055052898,-587.02,0.00027397,2]
[332230292,1721055052907,-406.79989349,0.00027397,60]
[332230293,1721055052918,-500.0,0.00027397,7]
[332230294,1721055052928,-500.0,0.00027397,7]
[332230295,1721055052937,-500.0,0.00027397,7]
[332230296,1721055052946,-500.0,0.00027397,7]
[332230297,1721055052957,-500.0,0.00027397,7]
[332230298,1721055052967,-500.0,0.00027397,7]
[332230299,1721055052976,-500.0,0.00027397,7]
[332230300,1721055052985,-500.0,0.00027397,7]
[332230301,1721055052997,-556.752206,0.00027397,7]
[332230302,1721055053006,-6250.0,0.00027397,120]
[332230303,1721055053016,-336.90450139,0.000274,2]
[332230304,1721055053025,-153.92251333,0.00027422,2]
[332230305,1721055053034,-4918.23712229,0.00027423,2]
[332230306,1721055053046,-150.49308352,0.00027465,2]
[332230307,1721055053055,-154.5944506,0.00027473,2]
[332230308,1721055053067,-150.49308352,0.00027488,2]
[332230309,1721055053076,-2202.7,0.000275,30]
[332230310,1721055053086,-151.0,0.00027505,2]
[332230311,1721055053095,-151.78440315,0.00027519,2]
[332230312,1721055053104,-2233.49057512,0.00027526,2]
[332230313,1721055053113,-152.2410677,0.00027527,2]
[332230314,1721055053122,-729.89684613,0.00027527,2]
[332230315,1721055053131,-2233.49057512,0.00027588,2]
[332230316,1721055053141,-1970.0,0.00027622,2]
[332230317,1721055053151,-151.0,0.00027622,2]
[332230318,1721055053161,-329.84504603,0.00027628,2]
[332230319,1721055053171,-500.0,0.00027671,2]
[332230320,1721055053180,-597.20473165,0.00027671,2]
[332230321,1721055053189,-567.04,0.00027671,2]
[332230322,1721055053198,-500.0,0.00027671,2]
[332230323,1721055053207,-500.0,0.00027671,2]
[332230324,1721055053217,-500.0,0.00027671,2]
[332230325,1721055053226,-500.0,0.00027671,2]
[332230326,1721055053235,-500.0,0.00027671,2]
[332230327,1721055053244,-500.0,0.00027671,2]
[332230328,1721055053255,-500.0,0.00027671,2]
[332230329,1721055053265,-362.94,0.00027671,2]
[332230330,1721055053274,-733.59,0.00027671,2]
[332230331,1721055053284,-938.11,0.00027671,2]
[332230332,1721055053294,-783.68,0.00027671,2]
[332230333,1721055053303,-601.54939132,0.00027671,2]
[332230334,1721055053313,-500.0,0.00027671,2]
[332230335,1721055053322,-8031.84,0.00027671,2]
[332230336,1721055053332,-665.36,0.00027671,2]
[332230337,1721055053341,-823.83,0.00027671,2]
[332230338,1721055053352,-500.0,0.00027671,2]
[332230339,1721055053361,-500.0,0.00027671,2]
[332230340,1721055053371,-500.0,0.00027671,2]
[332230341,1721055053380,-896.13,0.00027671,2]
[332230342,1721055053389,-1251.5,0.00027671,2]
[332230343,1721055053400,-554.96,0.00027671,2]
[332230344,1721055053409,-1255.3,0.00027671,2]
[332230345,1721055053419,-9123.68,0.00027671,2]
[332230346,1721055053428,-500.0,0.00027671,2]
[332230347,1721055053438,-735.6,0.00027671,2]
[332230348,1721055053447,-731.63,0.00027671,2]
[332230349,1721055053457,-644.81,0.00027671,2]
[332230350,1721055053467,-587.02,0.00027671,2]
[332230351,1721055053477,-329.84504603,0.00027681,2]
[332230352,1721055053486,-329.84504603,0.00027704,2]
[332230353,1721055053496,-329.84504603,0.00027779,2]
[332230354,1721055053505,-301.42728815,0.00027798,4]
[332230355,1721055053514,-729.89684613,0.000278,2]
[332230356,1721055053524,-4918.2371223,0.00027846,2]
[332230357,1721055053533,-729.89684613,0.00027853,2]
[332230358,1721055053543,-2233.49057512,0.00027866,2]
[332230359,1721055053552,-729.89684613,0.00027883,2]
[332230360,1721055053561,-158.08796187,0.00027891,2]
[332230361,1721055053571,-373.0,0.000279,2]
[332230362,1721055053580,-747.0,0.000279,2]
[332230363,1721055053589,-747.0,0.000279,2]
[332230364,1721055053598,-151.0,0.00027945,7]
[332230365,1721055053607,-500.0,0.00027945,2]
[332230366,1721055053616,-151.0,0.00027945,2]
[332230367,1721055053626,-567.04,0.00027945,2]
[332230368,1721055053635,-604.79,0.00027945,2]
[332230369,1721055053644,-500.0,0.00027945,2]
[332230370,1721055053653,-500.0,0.00027945,2]
[332230371,1721055053662,-500.0,0.00027945,2]
[332230372,1721055053671,-500.0,0.00027945,2]
[332230373,1721055053681,-151.0,0.00027945,7]
[332230374,1721055053690,-460.58654752,0.00027945,2]
[332230375,1721055053700,-246.084278,0.00027945,7]
[332230376,1721055053709,-246.084278,0.00027945,7]
[332230377,1721055053718,-597.948573,0.00027945,7]
[332230378,1721055053728,-597.948573,0.00027945,7]
[332230379,1721055053738,-500.0,0.00027945,2]
[332230380,1721055053747,-151.0,0.00027945,2]
[332230381,1721055053757,-733.59,0.00027945,2]
[332230382,1721055053766,-938.11,0.00027945,2]
[332230383,1721055053775,-151.0,0.00027945,7]
[332230384,1721055053784,-783.68,0.00027945,2]
[332230385,1721055053794,-500.0,0.00027945,2]
[332230386,1721055053804,-282.72308,0.00027945,7]
[332230387,1721055053814,-282.72308,0.00027945,7]
[332230388,1721055053823,-8031.84,0.00027945,2]
[332230389,1721055053832,-11451.26,0.00027945,30]
[332230390,1721055053841,-11451.26,0.00027945,30]
[332230391,1721055053851,-11451.26,0.00027945,30]
[332230392,1721055053860,-11451.26,0.00027945,30]
[332230393,1721055053869,-11451.26,0.00027945,30]
[332230394,1721055053878,-11451.26,0.00027945,30]
[332230395,1721055053891,-11451.26,0.00027945,30]
[332230396,1721055053906,-11451.26,0.00027945,30]
[332230397,1721055053923,-11451.26,0.00027945,30]
[332230398,1721055053936,-11451.26,0.00027945,30]
[332230399,1721055053947,-11451.26,0.00027945,30]
[332230400,1721055053960,-11451.26,0.00027945,30]
[332230401,1721055053973,-665.36,0.00027945,2]
[332230402,1721055053986,-11451.26,0.00027945,30]
[332230403,1721055054001,-11451.26,0.00027945,30]
[332230404,1721055054013,-11451.26,0.00027945,30]
[332230405,1721055054026,-5599.23597985,0.00027945,30]
[332230406,1721055159035,525.56960238,0.00014999,2]
[332230407,1721055165612,356.55824558,0.00014999,2]
[332230408,1721055174236,599.44172174,0.00014999,2]
[332230409,1721055180943,1599.25971489,0.00014999,2]
[332230410,1721055184771,30979.69201512,0.00025,120]
[332230411,1721055189799,458.51579802,0.00014999,2]
[332230412,1721055385107,154.69833824,0.00014999,2]
[332230414,1721055426527,10618.87007952,0.00014998,2]
[332230415,1721055450223,1987.86604754,0.00014999,2]
[332230416,1721055466753,3078.85157566,0.00014999,2]
[332230417,1721055509547,1106.379575,0.00015,2]
[332230418,1721055519246,599.44172174,0.00014999,2]
[332230419,1721055580249,610.635225,0.00015,2]
[332230420,1721055636476,1063.91111254,0.00014999,2]
[332230421,1721055681379,1500.0,0.00014999,2]
[332230422,1721055690472,1106.379575,0.00015,2]
[332230423,1721055730843,481.04710867,0.00014999,2]
[332230426,1721055740398,160.34782851,0.00014999,2]
[332230427,1721055795271,598.60216026,0.00014999,2]
[332230428,1721055808272,574.24735706,0.00015,2]
[332230429,1721055815485,790.65319772,0.00014999,2]
[332230430,1721055851388,1500.0,0.00014999,2]
[332230431,1721055878993,2125.60007203,0.00014999,2]
[332230434,1721055905894,615.27752407,0.00015,2]
[332230435,1721055922318,4711.13030053,0.00014999,2]
[332230436,1721055949356,481.04710867,0.00014999,2]
[332230437,1721055983083,219.17364494,0.00014999,2]
[332230438,1721055983467,365.54,0.00010959,2]
[332230439,1721056033742,368.51455861,0.00014999,2]
[332230440,1721056039410,1100.27496268,0.00014999,2]
[332230441,1721056043450,532.67305812,0.00014999,2]
[332230442,1721056068969,790.1699062,0.00014999,2]
[332230443,1721056071279,599.23183137,0.00014999,2]
[332230444,1721056083871,481.04710867,0.00014999,2]
[332230447,1721056099268,24900.0,0.00015226,2]
[332230448,1721056100558,554.70249206,0.00014999,2]
[332230449,1721056109837,777.12632108,0.00014999,2]
[332230451,1721056111940,-302.72249511,0.00015995,2]
[332230463,1721056137733,154.85471509,0.00014999,2]
[332230501,1721056234479,-150.61781128,0.00016155,2]
[332230503,1721056234489,-300.0,0.00016243,2]
[332230505,1721056234500,-300.0,0.00016243,2]
[332230507,1721056234510,-500.0,0.00016244,2]
[332230509,1721056234522,-163.36786563,0.00016244,2]
[332230511,1721056234531,-500.0,0.00016244,2]
[332230513,1721056234540,-500.0,0.00016244,2]
[332230515,1721056234550,-500.0,0.00016244,2]
[332230517,1721056234559,-174.2424521,0.00016244,2]
[332230520,1721056234571,-325.7575479,0.00016244,2]
[332230522,1721056234581,-93.48342707,0.00016244,2]
[332230524,1721056234593,-406.51657293,0.00016244,2]
[332230526,1721056234604,-500.0,0.00016244,2]
[332230528,1721056234613,-476.76951261,0.00016244,2]
[332230530,1721056234623,-500.0,0.00016244,2]
[332230532,1721056234632,-500.0,0.00016244,2]
[332230534,1721056234642,-371.85684857,0.00016244,2]
[332230536,1721056234652,-500.0,0.00016244,2]
[332230538,1721056234662,-500.0,0.00016244,2]
[332230540,1721056234671,-294.74276843,0.00016244,2]
[332230542,1721056234681,-314.63504219,0.00016244,2]
[332230544,1721056234691,-500.0,0.00016244,2]
[332230546,1721056234702,-46.79148002,0.00016244,2]
[332230909,1721056240284,-453.20851998,0.00016244,2]
[332230910,1721056240296,-500.0,0.00016244,2]
[332230913,1721056240305,-56.08084209,0.00016244,2]
[332230914,1721056240318,-443.91915791,0.00016244,2]
[332230915,1721056240327,-500.0,0.00016244,2]
[332230916,1721056240336,-500.0,0.00016244,2]
[332230917,1721056240346,-500.0,0.00016244,2]
[332230918,1721056240355,-282.67494597,0.00016244,2]
[332230919,1721056240365,-133724.222909,0.00016245,2]
[332230920,1721056240376,-57293.30810626,0.00016254,2]
[332230922,1721056240387,-34974.4178292,0.00016255,2]
[332230924,1721056240396,-7847.64536143,0.00016255,2]
[332230942,1721056240676,-34437.78806665,0.00016255,2]
[332230944,1721056240686,-17273.92009996,0.00016255,2]
[332230946,1721056240696,-490.90477664,0.00016255,2]
[332230947,1721056240705,-236.9869895,0.00016994,2]
[332230949,1721056240715,-420.0,0.00017755,2]
[332230950,1721056240724,-420.0,0.00017867,2]
[332230951,1721056240734,-24549.01898368,0.00018,2]
[332230952,1721056240745,-191.27347695,0.0001818,2]
[332230953,1721056240755,-178.61086927,0.0001818,2]
[332230954,1721056240765,-2422.80787231,0.00018899,2]
[332230955,1721056240774,-250.0,0.00019041,2]
[332230956,1721056240784,-587.0,0.00019407,2]
[332230957,1721056240794,-587.0,0.00019654,2]
[332230958,1721056240803,-171.40800158,0.0002,2]
[332230959,1721056240813,-463.82271479,0.00021073,2]
[332230960,1721056240823,-500.0,0.00021073,2]
[332230961,1721056240833,-500.0,0.00021073,2]
[332230962,1721056240843,-500.0,0.00021073,2]
[332230963,1721056240852,-500.0,0.00021073,2]
[332230965,1721056240862,-280.36420786,0.00021073,2]
[332230967,1721056240871,-500.0,0.00021073,2]
[332230968,1721056240880,-500.0,0.00021073,2]
[332230969,1721056240895,-500.0,0.00021073,2]
[332230970,1721056240906,-500.0,0.00021073,2]
[332230972,1721056240916,-500.0,0.00021073,2]
[332230973,1721056240926,-500.0,0.00021073,2]
[332230974,1721056240935,-500.0,0.00021073,2]
[332230975,1721056240944,-500.0,0.00021073,2]
[332230976,1721056240954,-500.0,0.00021073,2]
[332230977,1721056240964,-500.0,0.00021073,2]
[332230978,1721056240974,-500.0,0.00021073,2]
[332230979,1721056240984,-500.0,0.00021073,2]
[332230980,1721056240993,-181.66383154,0.00021073,2]
[332230981,1721056241003,-500.0,0.00021073,2]
[332230982,1721056241013,-500.0,0.00021073,2]
[332230983,1721056241025,-500.0,0.00021073,2]
[332230984,1721056241035,-500.0,0.00021073,2]
[332230985,1721056241045,-500.0,0.00021073,2]
[332230986,1721056241055,-500.0,0.00021073,2]
[332230987,1721056241065,-500.0,0.00021073,2]
[332230988,1721056241074,-500.0,0.00021073,2]
[332230989,1721056241084,-500.0,0.00021073,2]
[332230990,1721056241094,-500.0,0.00021073,2]
[332230991,1721056241103,-500.0,0.00021073,2]
[332230992,1721056241113,-400.0,0.00021073,2]
[332230993,1721056241123,-66862.1114547,0.00021074,3]
[332230994,1721056241133,-291.330668,0.00021096,2]
[332230995,1721056241143,-204.0,0.00021213,2]
[332230996,1721056241153,-823.0,0.0002162,2]
[332230997,1721056241163,-166.666666,0.00021918,2]
[332230998,1721056241173,-166.666666,0.00022431,2]
[332230999,1721056241183,-901.05432794,0.000229,2]
[332231000,1721056241194,-66862.1114547,0.00022932,3]
[332231001,1721056241204,-20733.74042996,0.00022941,2]
[332231002,1721056241216,-15549.25605317,0.00022942,5]
[332231003,1721056241227,-166.666666,0.00022944,2]
[332231004,1721056241237,-1278.04794084,0.00023,2]
[332231005,1721056241247,-153.0,0.00023273,2]
[332231006,1721056241383,-153.0,0.00023273,2]
[332231007,1721056241396,-153.0,0.00023273,2]
[332231008,1721056241406,-153.0,0.00023273,2]
[332231009,1721056241418,-153.0,0.00023273,2]
[332231010,1721056241428,-4434.04270183,0.00023453,2]
[332231011,1721056241438,-30000.0,0.00023455,2]
[332231012,1721056241451,-166.666666,0.00023456,2]
[332231013,1721056241460,-632.62003334,0.00023532,2]
[332231014,1721056241469,-1152.0,0.00023781,2]
[332231015,1721056241479,-1392.11457464,0.00023966,2]
[332231016,1721056241488,-166.666666,0.00023969,2]
[332231017,1721056241498,-1361.74587991,0.00024478,2]
[332231018,1721056241507,-166.666666,0.00024482,2]
[332231019,1721056241516,-150.0,0.00024493,2]
[332231020,1721056241526,-504.0,0.00024493,2]
[332231021,1721056241536,-150.61781128,0.00024557,2]
[332231022,1721056241547,-1407.0,0.00024593,2]
[332231023,1721056241558,-19608.31029276,0.00024647,3]
[332231024,1721056241583,-47253.80116194,0.00024647,3]
[332231025,1721056241593,-500.0,0.00024657,2]
[332231026,1721056241603,-500.0,0.00024657,2]
[332231027,1721056241613,-506.25715538,0.00024657,2]
[332231028,1721056241624,-500.0,0.00024657,2]
[332231029,1721056241634,-500.0,0.00024657,2]
[332231030,1721056241644,-500.0,0.00024657,2]
[332231031,1721056241657,-500.0,0.00024657,2]
[332231032,1721056241666,-500.0,0.00024657,2]
[332231033,1721056241676,-500.0,0.00024657,2]
[332231034,1721056241687,-492.40645405,0.00024657,2]
[332231035,1721056241698,-500.0,0.00024657,2]
[332231036,1721056241707,-500.0,0.00024657,2]
[332231037,1721056241716,-491.77680068,0.00024657,2]
[332231038,1721056241726,-500.0,0.00024657,2]
[332231039,1721056241736,-500.0,0.00024657,2]
[332231040,1721056241746,-500.0,0.00024657,2]
[332231041,1721056241755,-500.0,0.00024657,2]
[332231042,1721056241765,-500.0,0.00024657,2]
[332231043,1721056241775,-500.0,0.00024657,2]
[332231044,1721056241785,-154.55950541,0.00024657,2]
[332231045,1721056241795,-500.0,0.00024657,2]
[332231046,1721056241805,-500.0,0.00024657,2]
[332231047,1721056241816,-490.01961159,0.00024657,2]
[332231048,1721056241826,-500.0,0.00024657,2]
[332231049,1721056241835,-500.0,0.00024657,2]
[332231050,1721056241846,-500.0,0.00024657,2]
[332231051,1721056241855,-500.0,0.00024657,2]
[332231052,1721056241864,-436.61291868,0.00024657,2]
[332231053,1721056241874,-500.0,0.00024657,2]
[332231054,1721056241883,-500.0,0.00024657,2]
[332231055,1721056241892,-500.0,0.00024657,2]
[332231056,1721056241902,-500.0,0.00024657,2]
[332231057,1721056241913,-500.0,0.00024657,2]
[332231058,1721056241924,-500.0,0.00024657,2]
[332231059,1721056241934,-500.0,0.00024657,2]
[332231060,1721056241944,-500.0,0.00024657,2]
[332231061,1721056241954,-500.0,0.00024657,2]
[332231062,1721056241964,-500.0,0.00024657,2]
[332231063,1721056241974,-500.0,0.00024657,2]
[332231064,1721056241984,-500.0,0.00024657,2]
[332231065,1721056241994,-500.0,0.00024657,2]
[332231066,1721056242004,-366.60727297,0.00024657,2]
[332231067,1721056242014,-500.0,0.00024657,2]
[332231068,1721056242024,-500.0,0.00024657,2]
[332231069,1721056242034,-1500.0,0.00024657,2]
[332231070,1721056242044,-500.0,0.00024657,2]
[332231071,1721056242054,-500.0,0.00024657,2]
[332231072,1721056242063,-500.0,0.00024657,2]
[332231073,1721056242073,-500.0,0.00024657,2]
[332231074,1721056242083,-567.43646285,0.00024657,2]
[332231075,1721056242093,-562.45115032,0.00024657,2]
[332231076,1721056242103,-164.11192137,0.00024657,2]
[332231077,1721056242113,-500.0,0.00024657,2]
[332231078,1721056242123,-506.40426576,0.00024657,2]
[332231079,1721056242132,-500.0,0.00024657,2]
[332231080,1721056242142,-500.0,0.00024657,2]
[332231081,1721056242152,-500.0,0.00024657,2]
[332231082,1721056242164,-500.0,0.00024657,2]
[332231083,1721056242174,-500.0,0.00024657,2]
[332231084,1721056242185,-461.37666001,0.00024657,2]
[332231085,1721056242194,-374.39866115,0.00024657,2]